bitfinex/quotes_SOLUSD_20250207
["timestamp","ask_amount","ask_price","bid_price","bid_amount"]
[1738927272490,5.0401,198.41,198.36,11.77016665]
[1738927272990,5.0698,198.42,198.37,11.70716665]
[1738927273193,0.03,198.42,198.4,11.70716665]
[1738927273397,0.03,198.42,198.41,11.70716665]
[1738927273881,0.03,198.42,198.4,11.70716665]
[1738927274083,0.03,198.42,198.39,11.70716665]
[1738927274285,0.03,198.42,198.37,11.70716665]
[1738927274782,11.73716665,198.42,198.36,11.77016665]
[1738927274982,0.03,198.41,198.36,11.77016665]
[1738927275187,11.73716665,198.41,198.36,0.063]
[1738927275494,11.70716665,198.4,198.36,0.063]
[1738927276097,16.74766665,198.39,198.36,0.063]
[1738927277180,11.70716665,198.37,198.36,0.063]
[1738927277579,16.74766665,198.39,198.36,0.063]
[1738927279294,11.70716665,198.37,198.36,0.063]
[1738927279701,11.70716665,198.38,198.36,0.063]
[1738927279882,16.74766665,198.39,198.36,0.063]
[1738927282595,0.03,198.41,198.36,11.77016665]
[1738927282794,5.07,198.41,198.36,11.77016665]
[1738927283781,0.03,198.41,198.36,11.77016665]
[1738927285594,11.73716665,198.41,198.36,0.063]
[1738927285798,11.70716665,198.4,198.36,0.063]
[1738927286191,11.70716665,198.37,198.36,0.063]
[1738927286990,11.70716665,198.38,198.36,0.063]
[1738927288103,5.041,198.37,198.36,0.063]
[1738927289206,11.70716665,198.38,198.36,0.063]
[1738927290788,16.74786665,198.39,198.36,0.063]
[1738927291005,5.0407,198.39,198.36,0.063]
[1738927291510,16.74786665,198.39,198.36,0.063]
[1738927292205,11.70716665,198.38,198.36,0.063]
[1738927292985,5.0407,198.39,198.36,0.063]
[1738927293192,11.70716665,198.37,198.36,0.063]
[1738927293490,16.74816665,198.37,198.36,0.063]
[1738927294414,20.0,198.34,198.25,0.063]
[1738927294585,11.70716665,198.29,198.25,0.063]
[1738927294990,13.41184853,198.33,198.26,11.70716665]
[1738927294991,11.70716665,198.32,198.26,11.70716665]
[1738927295203,11.70716665,198.33,198.27,11.70716665]
[1738927295598,16.74946665,198.32,198.26,11.70716665]
[1738927295925,16.74946665,198.32,198.25,11.77016665]
[1738927297215,16.74946665,198.32,198.26,11.70716665]
[1738927298211,16.74946665,198.32,198.25,11.77016665]
[1738927298409,11.70716665,198.3,198.25,0.063]
[1738927298922,11.70716665,198.3,198.27,0.063]
[1738927299721,5.0431,198.29,198.27,0.063]
[1738927301015,11.70716665,198.29,198.27,0.063]
[1738927301821,11.70716665,198.3,198.27,0.063]
[1738927302694,5.0431,198.29,198.27,0.063]
[1738927303899,5.0428,198.31,198.27,11.77016665]
[1738927304622,13.41184853,198.33,198.27,11.77016665]
[1738927304809,5.0423,198.32,198.27,11.77016665]
[1738927305319,5.0423,198.32,198.28,11.70716665]
[1738927305625,5.0423,198.32,198.29,11.70716665]
[1738927306523,5.0423,198.32,198.28,11.70716665]
[1738927307623,16.74926665,198.33,198.27,11.77016665]
[1738927309422,16.74926665,198.33,198.27,0.063]
[1738927309623,11.70716665,198.31,198.27,0.063]
[1738927310827,16.74996665,198.3,198.28,0.063]
[1738927311826,11.70716665,198.29,198.28,0.063]
[1738927312630,16.75026665,198.29,198.28,0.063]
[1738927314907,14.96884853,198.28,198.27,0.063]
[1738927315110,20.0,198.26,198.25,0.063]
[1738927315808,45.11901518,198.26,198.25,0.063]
[1738927316140,31.70716665,198.26,198.22,0.063]
[1738927316329,11.70716665,198.23,198.22,0.063]
[1738927316644,11.70716665,198.24,198.22,0.063]
[1738927317023,16.75176665,198.23,198.22,0.063]
[1738927321130,30.16361518,198.23,198.22,0.063]
[1738927321448,30.16361518,198.23,198.21,0.0001]
[1738927321623,25.11901518,198.22,198.2,0.0001]
[1738927321936,31.69401518,198.21,198.2,0.0001]
[1738927322921,20.0,198.18,198.1,11.58536665]
[1738927323119,11.70716665,198.16,198.1,11.58536665]
[1738927323323,11.70716665,198.14,198.08,11.77016665]
[1738927323544,11.70716665,198.14,198.08,0.063]
[1738927324044,5.0471,198.13,198.08,0.063]
[1738927324259,11.70716665,198.11,198.08,0.063]
[1738927324444,11.70716665,198.09,198.08,0.063]
[1738927325949,16.75536665,198.09,198.08,0.063]
[1738927326645,24.32326665,198.16,198.08,11.77016665]
[1738927326849,5.0464,198.16,198.12,11.70716665]
[1738927327028,5.0464,198.16,198.12,11.20716665]
[1738927328247,17.29530592,198.17,198.13,11.70716665]
[1738927328436,5.0456,198.19,198.09,0.7570203]
[1738927328437,5.0456,198.19,198.15,11.70716665]
[1738927328639,5.0456,198.19,198.15,18.3385065]
[1738927329349,18.3385065,198.22,198.15,18.3385065]
[1738927329546,5.0451,198.21,198.15,18.3385065]
[1738927329955,23.3836065,198.21,198.14,18.3385065]
[1738927330251,5.0451,198.21,198.15,18.3385065]
[1738927330545,5.0451,198.21,198.15,17.8385065]
[1738927330947,23.3836065,198.21,198.14,18.3385065]
[1738927331353,5.0451,198.21,198.15,18.3385065]
[1738927332465,18.3385065,198.23,198.16,18.3385065]
[1738927332663,5.0448,198.23,198.18,18.3385065]
[1738927333435,18.3385065,198.25,198.18,18.3385065]
[1738927333643,5.0443,198.24,198.18,18.3385065]
[1738927334058,23.3828065,198.24,198.17,18.3385065]
[1738927334875,23.3828065,198.24,198.17,17.8385065]
[1738927335072,18.3385065,198.22,198.15,18.3385065]
[1738927336657,18.3385065,198.22,198.16,18.3385065]
[1738927337048,5.0451,198.21,198.16,18.3385065]
[1738927337445,5.0748,198.23,198.17,18.3385065]
[1738927337752,0.03,198.23,198.21,18.3385065]
[1738927339861,0.03,198.23,198.2,18.3385065]
[1738927340161,0.03,198.23,198.17,18.3385065]
[1738927340370,18.3685065,198.23,198.16,18.3385065]
[1738927341353,18.3685065,198.23,198.17,18.3385065]
[1738927341354,5.0448,198.22,198.17,18.3385065]
[1738927341943,5.0746,198.23,198.19,18.3385065]
[1738927342148,0.03,198.23,198.19,18.3385065]
[1738927342340,0.03,198.23,198.22,18.3385065]
[1738927343565,0.03,198.23,198.22,17.8385065]
[1738927344464,0.03,198.23,198.22,22.8833065]
[1738927347150,0.03,198.23,198.22,23.63983126]
[1738927347351,0.03,198.23,198.22,24.13983126]
[1738927351357,0.03,198.23,198.22,23.63983126]
[1738927353172,0.03,198.23,198.22,19.09503126]
[1738927353559,0.03,198.23,198.22,24.13983126]
[1738927356080,0.03,198.23,198.22,23.3833065]
[1738927356277,0.03,198.23,198.22,24.13981823]
[1738927357064,0.03,198.23,198.22,19.09501823]
[1738927357866,0.03,198.23,198.22,18.3385065]
[1738927359265,0.03,198.23,198.22,18.4015065]
[1738927360676,0.03,198.23,198.22,11.78944665]
[1738927362288,0.03,198.23,198.22,0.063]
[1738927364463,0.03,198.23,198.18,5.0458]
[1738927364667,0.03,198.23,198.21,11.72644665]
[1738927365385,0.03,198.23,198.22,11.72644665]
[1738927372880,0.03,198.23,198.21,0.03]
[1738927376388,0.03,198.23,198.21,11.75644665]
[1738927378396,0.03,198.23,198.22,11.72644665]
[1738927378980,0.03,198.23,198.21,11.75644665]
[1738927379182,0.03,198.23,198.21,0.03]
[1738927379398,11.75644665,198.23,198.21,0.03]
[1738927379597,0.03,198.23,198.21,0.03]
[1738927380686,0.03,198.23,198.21,11.75644665]
[1738927380883,0.03,198.23,198.22,11.72644665]
[1738927382198,0.03,198.23,198.21,0.03]
[1738927383501,31.72644665,198.22,198.14,11.72644665]
[1738927383699,11.72644665,198.21,198.14,11.72644665]
[1738927384104,11.72644665,198.2,198.14,11.72644665]
[1738927384682,11.72644665,198.2,198.13,11.72644665]
[1738927384886,11.72644665,198.19,198.12,11.72644665]
[1738927385492,11.72644665,198.19,198.13,11.72644665]
[1738927385905,5.0459,198.18,198.13,11.72644665]
[1738927386799,5.0459,198.18,198.12,11.72644665]
[1738927389695,11.72644665,198.15,198.1,0.063]
[1738927389901,19.76011075,198.18,198.1,0.063]
[1738927389902,11.72644665,198.14,198.1,0.063]
[1738927390304,11.72644665,198.16,198.1,0.063]
[1738927390814,11.72644665,198.15,198.1,0.063]
[1738927391016,31.72644665,198.15,198.1,0.063]
[1738927391218,16.77334665,198.14,198.1,0.063]
[1738927391596,11.72644665,198.13,198.1,0.063]
[1738927391917,11.72644665,198.12,198.1,0.063]
[1738927393423,5.0477,198.11,198.1,0.063]
[1738927394399,5.0473,198.13,198.1,11.78944665]
[1738927395095,5.0469,198.15,198.11,11.72644665]
[1738927396006,11.72644665,198.14,198.1,0.063]
[1738927396208,0.50001075,198.17,198.1,0.063]
[1738927396209,5.0474,198.12,198.1,0.063]
[1738927397322,16.77384665,198.12,198.1,0.063]
[1738927397618,11.72644665,198.11,198.1,0.063]
[1738927398304,16.77414665,198.11,198.1,0.063]
[1738927398510,5.0477,198.11,198.1,0.063]
[1738927399520,11.72644665,198.13,198.1,0.063]
[1738927399728,16.77304665,198.15,198.1,0.063]
[1738927400324,11.72644665,198.14,198.1,0.063]
[1738927400816,5.0471,198.13,198.1,0.063]
[1738927403920,16.77354665,198.13,198.1,0.063]
[1738927405232,24.34294665,198.16,198.1,0.063]
[1738927405398,101.54054665,198.18,198.12,11.72644665]
[1738927405723,5.0461,198.17,198.13,11.72644665]
[1738927405902,5.0461,198.17,198.12,11.72644665]
[1738927406495,11.72644665,198.15,198.1,0.063]
[1738927406902,11.72644665,198.14,198.1,0.063]
[1738927407406,5.0471,198.13,198.1,0.063]
[1738927408199,16.77354665,198.13,198.1,0.063]
[1738927408605,16.77334665,198.14,198.1,0.063]
[1738927409330,5.0469,198.14,198.1,11.78944665]
[1738927409705,5.0469,198.14,198.1,0.063]
[1738927410306,11.78944665,198.16,198.1,0.063]
[1738927410913,11.72644665,198.15,198.1,0.063]
[1738927411726,5.0469,198.14,198.1,0.063]
[1738927412620,11.78944665,198.16,198.1,0.063]
[1738927412824,5.0466,198.15,198.1,0.063]
[1738927413327,0.063,198.16,198.13,11.72644665]
[1738927413832,0.063,198.16,198.11,11.72644665]
[1738927414719,5.1095,198.16,198.11,11.72644665]
[1738927414919,16.83594665,198.16,198.1,11.78944665]
[1738927415116,5.1095,198.16,198.12,11.72644665]
[1738927415317,0.063,198.16,198.13,11.72644665]
[1738927416134,0.063,198.16,198.12,11.72644665]
[1738927416511,0.063,198.16,198.1,11.78944665]
[1738927416721,11.72644665,198.15,198.1,0.063]
[1738927416918,0.063,198.16,198.11,11.72644665]
[1738927417407,5.0467,198.15,198.11,11.72644665]
[1738927417932,5.0467,198.15,198.1,0.063]
[1738927418434,11.72644665,198.13,198.1,0.063]
[1738927419049,5.0474,198.12,198.1,0.063]
[1738927421909,5.0469,198.14,198.1,11.78944665]
[1738927422822,5.0469,198.14,198.1,0.063]
[1738927423542,5.0466,198.15,198.1,0.063]
[1738927423839,16.77304665,198.15,198.1,0.063]
[1738927425518,5.0466,198.15,198.1,0.063]
[1738927425914,16.77304665,198.15,198.1,0.063]
[1738927426114,11.72644665,198.14,198.1,0.063]
[1738927426720,16.77304665,198.15,198.1,0.063]
[1738927427443,11.72644665,198.14,198.1,0.063]
[1738927427653,18.16331075,198.15,198.1,0.063]
[1738927427654,11.72644665,198.13,198.1,0.063]
[1738927428336,17.6633,198.15,198.1,0.063]
[1738927431849,29.38974665,198.15,198.1,0.063]
[1738927432041,11.72644665,198.14,198.1,0.063]
[1738927432345,11.72644665,198.13,198.1,0.063]
[1738927433445,11.72644665,198.11,198.1,0.063]
[1738927434045,16.77414665,198.11,198.1,0.063]
[1738927434446,30.18599518,198.11,198.08,0.063]
[1738927434646,11.72644665,198.09,198.08,0.063]
[1738927435739,11.72644665,198.1,198.08,0.063]
[1738927435945,5.0477,198.11,198.08,0.063]
[1738927437431,5.0477,198.11,198.08,11.78944665]
[1738927437633,5.0469,198.14,198.1,11.72644665]
[1738927438033,5.0469,198.14,198.09,11.72644665]
[1738927439950,5.0469,198.14,198.08,11.78944665]
[1738927441630,16.77334665,198.14,198.08,0.063]
[1738927442144,16.77334665,198.14,198.09,0.03]
[1738927442846,11.72644665,198.12,198.09,0.03]
[1738927443247,11.72644665,198.1,198.09,0.03]
[1738927444464,16.77434665,198.1,198.09,0.03]
[1738927445763,5.0479,198.1,198.09,0.03]
[1738927446254,12.6173,198.14,198.09,0.03]
[1738927446255,11.72644665,198.12,198.09,0.03]
[1738927446461,16.77404665,198.12,198.09,0.03]
[1738927446838,11.72644665,198.11,198.09,0.03]
[1738927448164,5.0479,198.1,198.09,0.03]
[1738927448366,16.77434665,198.1,198.09,0.03]
[1738927449977,16.77434665,198.1,198.08,0.063]
[1738927450272,30.68650593,198.09,198.08,0.063]
[1738927451465,16.77464665,198.09,198.08,0.063]
[1738927453151,5.0482,198.09,198.08,0.063]
[1738927453667,5.0479,198.1,198.08,0.063]
[1738927454345,16.77434665,198.1,198.08,0.063]
[1738927455767,11.72644665,198.09,198.08,0.063]
[1738927456175,25.13829518,198.09,198.08,0.063]
[1738927457876,30.18649518,198.09,198.08,0.063]
[1738927461271,13.41184853,198.08,198.07,0.063]
[1738927461486,25.63830593,198.08,198.07,0.063]
[1738927462358,25.0489,198.06,198.05,0.063]
[1738927462556,36.77534665,198.06,198.05,0.063]
[1738927466575,50.68720593,198.06,198.05,0.0001]
[1738927469290,36.77534665,198.06,198.05,0.0001]
[1738927469660,25.0489,198.06,198.05,0.0001]
[1738927470168,11.72644665,198.13,198.05,11.72654665]
[1738927470371,17.6656,198.13,198.08,11.72644665]
[1738927470563,17.6656,198.13,198.09,11.72644665]
[1738927470972,17.6656,198.13,198.08,11.72644665]
[1738927471156,29.39204665,198.13,198.07,11.72644665]
[1738927471357,5.0471,198.13,198.08,11.72644665]
[1738927472778,16.77354665,198.13,198.08,11.72644665]
[1738927472979,16.77354665,198.13,198.07,11.72644665]
[1738927477665,16.77354665,198.13,198.06,11.72644665]
[1738927479180,11.72644665,198.12,198.06,11.72644665]
[1738927479673,5.0477,198.11,198.06,11.72644665]
[1738927481586,11.72644665,198.1,198.05,0.0001]
[1738927482080,16.77414665,198.11,198.05,0.0001]
[1738927484663,29.39334665,198.11,198.05,0.0001]
[1738927485081,11.72644665,198.1,198.05,0.0001]
[1738927485275,25.13829518,198.09,198.05,0.0001]
[1738927486694,5.0484,198.08,198.05,0.0001]
[1738927490708,16.77484665,198.08,198.05,0.0001]
[1738927490875,11.72644665,198.07,198.05,0.0001]
[1738927491795,13.41184853,198.06,198.05,0.0001]
[1738927492687,30.18719518,198.06,198.05,0.0001]
[1738927494416,18.46074853,198.06,198.05,0.0001]
[1738927495210,30.18719518,198.06,198.05,0.0001]
[1738927498108,18.46074853,198.06,198.05,0.0001]
[1738927498277,5.0489,198.06,198.05,0.0001]
[1738927500211,20.0,198.06,198.05,0.0001]
[1738927500405,5.0487,198.07,198.05,0.0001]
[1738927500916,16.77514665,198.07,198.05,0.0001]
[1738927501888,5.0487,198.07,198.05,0.0001]
[1738927502421,16.83784665,198.08,198.05,0.0001]
[1738927502712,5.1114,198.08,198.05,0.0001]
[1738927503298,5.1114,198.08,198.05,11.72654665]
[1738927503515,5.1114,198.08,198.06,11.72644665]
[1738927504289,0.063,198.08,198.06,11.72644665]
[1738927505017,0.063,198.08,198.05,0.0001]
[1738927507514,20.0,198.06,198.05,0.0001]
[1738927508327,36.77534665,198.06,198.05,0.0001]
[1738927509005,50.18719518,198.06,198.05,0.0001]
[1738927512121,50.68720593,198.06,198.05,0.0001]
[1738927512423,20.0,198.03,198.02,0.063]
[1738927512609,20.0,198.03,198.0,0.063]
[1738927512610,13.41184853,198.02,198.0,0.063]
[1738927512929,13.91185928,198.01,198.0,0.063]
[1738927513331,18.96205928,198.01,198.0,0.0001]
[1738927514208,30.68850593,198.01,198.0,0.0001]
[1738927516312,31.97192985,198.01,198.0,0.0001]
[1738927516841,30.68850593,198.01,198.0,0.0001]
[1738927518012,32.93320452,198.01,198.0,0.0001]
[1738927518332,30.68850593,198.01,198.0,0.0001]
[1738927518531,30.18849518,198.01,198.0,0.0001]
[1738927520539,16.77664665,198.01,198.0,0.0001]
[1738927521220,30.18849518,198.01,198.0,0.0001]
[1738927522542,30.68850593,198.01,198.0,0.0001]
[1738927523251,30.18849518,198.01,198.0,0.0001]
[1738927524849,20.0,197.98,197.96,0.063]
[1738927525348,0.0499,198.0,197.96,0.063]
[1738927526022,11.77634665,198.0,197.96,0.063]
[1738927526212,11.72644665,197.99,197.96,0.063]
[1738927526634,13.41184853,197.97,197.96,0.063]
[1738927526844,25.13829518,197.97,197.96,0.063]
[1738927527218,25.63830593,197.97,197.96,0.063]
[1738927527821,25.63830593,197.97,197.96,0.0001]
[1738927528137,27.63830593,197.97,197.96,0.0001]
[1738927528448,20.0,197.91,197.9,0.03]
[1738927528643,32.2264574,197.91,197.9,0.03]
[1738927529149,50.69110593,197.91,197.9,0.03]
[1738927533720,25.0528,197.91,197.9,0.03]
[1738927535759,5.0528,197.91,197.9,0.03]
[1738927540948,37.76869518,197.94,197.9,0.03]
[1738927541265,5.0522,197.93,197.9,0.03]
[1738927541653,11.72644665,197.92,197.9,0.03]
[1738927542155,16.77864665,197.93,197.9,0.03]
[1738927544768,5.0522,197.93,197.9,0.03]
[1738927550366,5.0522,197.93,197.9,11.75644665]
[1738927551068,5.0522,197.93,197.9,0.03]
[1738927554458,0.02,197.9,197.89,0.03]
[1738927560671,0.02,197.9,197.89,11.75644665]
[1738927570568,0.02,197.9,197.89,0.03]
[1738927571458,0.02,197.9,197.89,11.75644665]
[1738927571987,0.02,197.9,197.89,11.70644665]
[1738927572979,0.02,197.9,197.88,11.75644665]
[1738927574581,0.02,197.9,197.88,0.03]
[1738927577172,0.083,197.9,197.88,0.03]
[1738927578073,0.083,197.9,197.89,11.72644665]
[1738927580477,0.083,197.9,197.89,16.77974665]
[1738927580973,0.083,197.9,197.89,11.72644665]
[1738927587702,0.083,197.9,197.89,16.77974665]
[1738927594785,0.083,197.9,197.89,63.68553325]
[1738927594978,0.083,197.9,197.89,248.88553325]
[1738927595179,0.083,197.9,197.89,250.53883325]
[1738927597494,0.083,197.9,197.89,203.63304665]
[1738927600575,0.083,197.9,197.89,250.53883325]
[1738927607800,0.083,197.9,197.89,251.53883325]
[1738927609998,0.063,197.96,197.89,252.53883325]
[1738927610180,0.063,197.96,197.95,11.72644665]
[1738927612804,0.063,197.96,197.95,16.77814665]
[1738927613007,0.063,197.96,197.95,17.53578291]
[1738927618311,0.063,197.96,197.95,99.13578291]
[1738927618516,0.063,197.96,197.95,100.13578291]
[1738927618806,0.063,197.96,197.95,203.73578291]
[1738927619022,0.0499,198.0,197.98,1.0]
[1738927619205,0.0499,198.0,197.99,13.48371959]
[1738927619617,0.0499,198.0,197.99,198.68371959]
[1738927619791,0.0499,198.0,197.99,197.92644665]
[1738927619992,0.063,198.07,198.0,1.0]
[1738927620195,0.063,198.07,198.0,13.48364307]
[1738927620491,0.063,198.07,198.0,17.53414307]
[1738927621203,0.063,198.07,198.0,18.53414307]
[1738927621425,0.063,198.07,198.0,17.53414307]
[1738927622410,0.063,198.07,198.0,18.53414307]
[1738927623206,0.063,198.07,198.01,1.0]
[1738927623431,0.063,198.07,198.06,11.72644665]
[1738927624928,0.063,198.07,198.06,12.48348001]
[1738927625299,0.063,198.07,198.06,121.13238001]
[1738927625515,0.063,198.07,198.06,121.37534665]
[1738927626732,0.063,198.07,198.06,115.32644665]
[1738927628515,0.063,198.07,198.06,11.72644665]
[1738927628714,0.063,198.07,198.03,11.72644665]
[1738927629633,0.063,198.07,197.99,3.76]
[1738927629634,11.72644665,198.05,197.99,11.72644665]
[1738927629807,1.5538,198.06,197.96,11.72644665]
[1738927629808,11.72644665,198.03,197.96,11.72644665]
[1738927631204,5.0499,198.02,197.97,11.72644665]
[1738927631404,5.0499,198.02,197.94,3.76]
[1738927631405,17.93034665,198.01,197.94,11.72644665]
[1738927631919,6.2039,198.01,197.95,11.72644665]
[1738927632932,5.0505,198.0,197.97,11.72644665]
[1738927633739,5.0505,198.0,197.96,11.72644665]
[1738927634741,5.0505,198.0,197.97,11.72644665]
[1738927635622,5.0505,198.0,197.96,11.72644665]
[1738927636014,5.0505,198.0,197.95,11.72644665]
[1738927638846,11.72644665,197.99,197.93,11.72644665]
[1738927639051,25.13829518,197.98,197.92,11.72644665]
[1738927639216,13.41184853,197.98,197.93,11.72644665]
[1738927639718,13.41184853,197.98,197.94,11.72644665]
[1738927640550,13.41184853,197.98,197.92,11.72644665]
[1738927641221,13.41184853,197.96,197.92,11.72644665]
[1738927642255,5.0517,197.95,197.92,11.72644665]
[1738927642429,5.0517,197.95,197.91,11.72644665]
[1738927642631,5.0517,197.95,197.9,11.72644665]
[1738927643746,5.0517,197.95,197.89,11.75644665]
[1738927644041,13.41184853,197.94,197.89,11.75644665]
[1738927644240,0.13829518,197.94,197.89,0.03]
[1738927644642,6.3134,197.93,197.89,0.03]
[1738927645148,20.0,197.92,197.89,11.75644665]
[1738927645533,5.0517,197.95,197.91,11.72644665]
[1738927645853,5.0512,197.97,197.94,11.72644665]
[1738927646624,1.6342,197.99,197.96,18.37743744]
[1738927646850,1.6342,197.99,197.98,18.37743744]
[1738927647844,5.0506,198.0,197.98,18.37743744]
[1738927648048,5.0506,198.0,197.97,18.37743744]
[1738927648922,5.1132,198.01,197.97,18.37743744]
[1738927649527,0.99,199.7,198.0,36.75487488]
[1738927649528,0.063,198.07,198.0,36.75487488]
[1738927649827,0.063,198.07,198.06,18.37743744]
[1738927660461,0.063,198.07,198.06,24.18341533]
[1738927660762,0.063,198.07,198.06,105.78341533]
[1738927660954,0.063,198.07,198.06,100.73451533]
[1738927661436,0.063,198.07,198.06,105.78341533]
[1738927663246,0.063,198.07,198.06,417.78341533]
[1738927663456,0.063,198.07,198.06,417.02633744]
[1738927664073,0.063,198.07,198.06,411.97743744]
[1738927664945,0.063,198.07,198.06,417.02633744]
[1738927665544,0.063,198.07,198.06,105.02633744]
[1738927665752,0.063,198.07,198.06,105.78333018]
[1738927666062,0.063,198.07,198.06,230.45737871]
[1738927666266,0.063,198.07,198.06,229.70038597]
[1738927666771,0.063,198.07,198.06,223.06300378]
[1738927667377,0.063,198.07,198.06,222.06300378]
[1738927668040,0.063,198.07,198.06,201.98895525]
[1738927668463,0.063,198.07,198.06,513.98895525]
[1738927671165,0.063,198.07,198.06,527.40080378]
[1738927671365,0.063,198.07,198.06,528.40080378]
[1738927671667,0.063,198.07,198.06,215.40080378]
[1738927671870,0.063,198.07,198.06,201.98895525]
[1738927672166,0.063,198.07,198.06,205.78895525]
[1738927674559,0.063,198.07,198.06,196.94005525]
[1738927679062,0.063,198.07,198.06,93.34005525]
[1738927679261,0.063,198.07,198.06,94.0971684]
[1738927681577,0.063,198.07,198.06,99.1460684]
[1738927683872,0.063,198.07,198.06,94.0971684]
[1738927684885,0.063,198.07,198.06,99.1460684]
[1738927686875,0.063,198.07,198.06,94.0971684]
[1738927687259,0.063,198.07,198.06,93.34005525]
[1738927694861,0.063,198.07,198.06,94.09720406]
[1738927695790,12.74475525,198.16,198.06,94.09720406]
[1738927696084,11.74005525,198.16,198.09,11.74005525]
[1738927697295,17.6633,198.15,198.09,11.74005525]
[1738927699879,17.6633,198.15,198.08,11.74005525]
[1738927700082,17.6633,198.15,198.06,82.35714839]
[1738927700083,20.0,198.11,198.06,81.6]
[1738927700291,20.0,198.11,198.05,11.74005525]
[1738927700467,20.0,198.11,198.04,11.74005525]
[1738927700783,31.74005525,198.12,198.02,87.407177]
[1738927700983,31.74005525,198.12,198.04,11.74005525]
[1738927701367,11.74005525,198.11,198.04,11.74005525]
[1738927701567,11.74005525,198.1,198.03,11.74005525]
[1738927701980,6.591,198.09,198.03,11.74005525]
[1738927703184,18.33105525,198.09,198.03,11.74005525]
[1738927703483,6.591,198.09,198.04,11.74005525]
[1738927703983,6.591,198.09,198.06,11.74005525]
[1738927704191,5.0471,198.13,198.08,11.74005525]
[1738927704486,5.0471,198.13,198.1,11.74005525]
[1738927704671,5.0471,198.13,198.09,11.74005525]
[1738927704989,11.74005525,198.12,198.06,11.74005525]
[1738927705182,11.74005525,198.12,198.05,11.74005525]
[1738927705372,5.0477,198.11,198.05,11.74005525]
[1738927705689,5.0477,198.11,198.06,11.74005525]
[1738927706689,5.0477,198.11,198.07,11.74005525]
[1738927707189,5.0473,198.13,198.09,11.74005525]
[1738927708890,5.0473,198.13,198.08,11.74005525]
[1738927709692,5.0473,198.13,198.09,11.74005525]
[1738927711184,5.0464,198.16,198.11,11.74005525]
[1738927711392,5.0464,198.16,198.12,11.74005525]
[1738927711694,5.0464,198.16,198.11,11.74005525]
[1738927712274,5.0461,198.17,198.11,11.74005525]
[1738927712974,16.78615525,198.17,198.1,11.74005525]
[1738927714271,5.0461,198.17,198.11,11.74005525]
[1738927717611,11.74005525,198.14,198.07,11.74005525]
[1738927717814,11.74005525,198.14,198.07,93.34005525]
[1738927717975,11.74005525,198.15,198.08,11.74005525]
[1738927718179,11.74005525,198.16,198.09,11.74005525]
[1738927718381,11.74005525,198.16,198.08,11.74005525]
[1738927719001,11.74005525,198.15,198.07,93.34005525]
[1738927719193,5.0469,198.14,198.07,93.34005525]
[1738927719511,5.0469,198.14,198.08,11.74005525]
[1738927720099,5.0469,198.14,198.11,0.03]
[1738927723933,24.41845525,198.17,198.11,0.03]
[1738927723934,11.74005525,198.15,198.11,0.03]
[1738927725211,11.74005525,198.14,198.11,0.03]
[1738927726007,11.74005525,198.15,198.11,0.03]
[1738927726398,24.41845525,198.17,198.11,0.03]
[1738927727222,12.6784,198.17,198.11,0.03]
[1738927727521,17.7245,198.17,198.11,11.77005525]
[1738927731131,20.0,198.16,198.11,11.77005525]
[1738927731503,0.063,198.17,198.15,11.74005525]
[1738927731708,0.063,198.17,198.16,11.74005525]
[1738927734312,0.063,198.17,198.15,93.34005525]
[1738927734514,0.063,198.17,198.15,81.6]
[1738927741414,0.063,198.17,198.13,11.74005525]
[1738927743940,11.80305525,198.17,198.11,93.37005525]
[1738927744243,11.74005525,198.15,198.11,81.63]
[1738927745543,11.74005525,198.13,198.11,0.03]
[1738927745848,5.0474,198.12,198.11,0.03]
[1738927747133,11.80305525,198.17,198.11,11.77005525]
[1738927747346,5.0464,198.16,198.11,11.77005525]